bitfinex/quotes_BTCUSD_20251201
["timestamp","ask_amount","ask_price","bid_price","bid_amount"]
[1764569531016,0.00932,86348.0,86346.0,0.23162394]
[1764569531646,0.002,86348.0,86346.0,0.23162394]
[1764569531794,0.00752,86350.0,86348.0,0.23161887]
[1764569531989,0.00752,86350.0,86341.0,0.2548374]
[1764569532333,0.002,86348.0,86345.0,0.01158144]
[1764569532573,0.002,86348.0,86346.0,0.23162624]
[1764569532783,0.002,86348.0,86347.0,0.05324]
[1764569533077,0.00752,86350.0,86348.0,0.23162088]
[1764569533283,0.0002,86350.0,86348.0,0.23162088]
[1764569533488,0.0002,86350.0,86347.0,0.03478117]
[1764569533689,0.0002,86350.0,86348.0,0.23162088]
[1764569534240,0.0012,86350.0,86348.0,0.23162088]
[1764569534571,0.0002,86350.0,86348.0,0.23162088]
[1764569534742,0.0012,86350.0,86348.0,0.23162088]
[1764569537224,0.0012,86350.0,86349.0,0.07292]
[1764569537597,0.00183747,86350.0,86349.0,0.07292]
[1764569538006,0.00083747,86350.0,86349.0,0.07292]
[1764569538626,0.00083747,86350.0,86347.0,0.03478117]
[1764569538627,0.00083747,86350.0,86347.0,0.26640219]
[1764569538822,0.0002,86350.0,86348.0,0.23161882]
[1764569539404,0.0002,86350.0,86349.0,0.12716442]
[1764569540663,0.0002,86350.0,86349.0,0.13448442]
[1764569540907,0.0002,86350.0,86349.0,0.12716442]
[1764569541231,0.0002,86350.0,86348.0,0.23161882]
[1764569541621,0.0002,86350.0,86349.0,0.02846]
[1764569542033,0.0002,86350.0,86349.0,0.07292]
[1764569543727,0.0002,86350.0,86349.0,0.02846]
[1764569543927,0.0002,86350.0,86349.0,0.12556442]
[1764569544336,0.0002,86350.0,86349.0,0.07292]
[1764569544741,0.00083747,86350.0,86349.0,0.09608182]
[1764569545364,0.00083747,86350.0,86349.0,0.07292]
[1764569545566,0.00083747,86350.0,86349.0,0.09608182]
[1764569545758,0.01177943,86360.0,86355.0,0.0115801]
[1764569545759,0.01157956,86359.0,86355.0,0.0115801]
[1764569545967,0.01157956,86359.0,86355.0,0.00039352]
[1764569545968,0.23159866,86357.0,86355.0,0.00039352]
[1764569546330,0.02858,86356.0,86355.0,0.00039352]
[1764569546456,0.02496947,86357.0,86355.0,0.00039352]
[1764569546658,0.23159942,86356.0,86355.0,0.00039352]
[1764569547042,0.30276942,86356.0,86355.0,0.00039352]
[1764569547247,0.32776398,86356.0,86355.0,0.00039352]
[1764569548075,0.33076398,86356.0,86355.0,0.00039352]
[1764569548712,0.33176398,86356.0,86355.0,0.00039352]
[1764569549806,0.28917398,86356.0,86355.0,0.00039352]
[1764569550236,0.30075529,86356.0,86355.0,0.00039352]
[1764569551408,0.29675529,86356.0,86355.0,0.00039352]
[1764569551605,0.29875529,86356.0,86355.0,0.00039352]
[1764569551811,0.34134529,86356.0,86355.0,0.00039352]
[1764569552011,0.42529766,86356.0,86355.0,0.00039352]
[1764569552340,0.43261766,86356.0,86355.0,0.00039352]
[1764569552568,0.34866529,86356.0,86355.0,0.00039352]
[1764569554068,2.73418828,86356.0,86355.0,0.00039352]
[1764569554298,2.70143228,86356.0,86355.0,0.00039352]
[1764569554614,2.40174328,86356.0,86355.0,0.00039352]
[1764569554812,2.25042628,86356.0,86355.0,0.00039352]
[1764569555116,2.67512919,86356.0,86355.0,0.00039352]
[1764569555312,2.68512919,86356.0,86355.0,0.00039352]
[1764569555718,2.68512919,86356.0,86330.0,0.01158345]
[1764569555719,0.24324239,86334.0,86330.0,0.01158345]
[1764569555928,0.24324239,86334.0,86330.0,0.00039428]
[1764569555929,0.01890305,86333.0,86330.0,0.00039428]
[1764569556132,0.03877305,86333.0,86330.0,0.00039428]
[1764569556763,0.03877305,86333.0,86330.0,0.00139428]
[1764569557188,0.03877305,86333.0,86330.0,0.00039428]
[1764569557417,0.00732,86333.0,86330.0,0.01297773]
[1764569557645,0.01890305,86333.0,86330.0,0.01297773]
[1764569558130,0.02858,86331.0,86330.0,0.00139428]
[1764569559066,0.07117,86331.0,86330.0,0.00139428]
[1764569559282,0.07117,86331.0,86330.0,0.00039428]
[1764569559515,0.07117,86331.0,86330.0,0.00239428]
[1764569560381,0.07117,86331.0,86330.0,0.00039428]
[1764569560566,0.07217,86331.0,86330.0,0.00039428]
[1764569560790,0.02958,86331.0,86330.0,0.00039428]
[1764569561532,0.04853,86331.0,86330.0,0.00039428]
[1764569566312,0.04753,86331.0,86330.0,0.00039428]
[1764569566991,0.001,86331.0,86330.0,0.26179345]
[1764569567397,0.001,86331.0,86330.0,0.23206345]
[1764569568004,0.001,86331.0,86330.0,0.00039428]
[1764569568210,0.26295649,86331.0,86330.0,0.00039428]
[1764569569305,0.001,86331.0,86330.0,0.00039428]
[1764569569718,0.07678,86331.0,86330.0,0.00039428]
[1764569572654,0.03129,86331.0,86330.0,0.00039428]
[1764569573059,0.07678,86331.0,86330.0,0.00039428]
[1764569573997,0.18313642,86331.0,86330.0,0.00039428]
[1764569574166,0.10175361,86331.0,86330.0,0.00039428]
[1764569575404,0.4872766,86331.0,86330.0,0.00039428]
[1764569575600,2.4872766,86331.0,86330.0,0.00039428]
[1764569575958,0.4872766,86331.0,86330.0,0.00039428]
[1764569576164,2.4862766,86331.0,86330.0,0.00039428]
[1764569576378,2.59997951,86331.0,86330.0,0.00039428]
[1764569576602,2.60397951,86331.0,86330.0,0.00039428]
[1764569576783,2.60097951,86331.0,86330.0,0.00039428]
[1764569576959,0.59997951,86331.0,86330.0,0.00039428]
[1764569577167,2.60597951,86331.0,86330.0,0.00039428]
[1764569577376,2.60697951,86331.0,86330.0,0.00039428]
[1764569577570,2.59886051,86331.0,86330.0,0.00039428]
[1764569577767,2.61429951,86331.0,86330.0,0.00039428]
[1764569578196,2.57961751,86331.0,86330.0,0.00039428]
[1764569578389,2.47778651,86331.0,86330.0,0.00039428]
[1764569578796,2.61429951,86331.0,86330.0,0.00039428]
[1764569579134,0.61429951,86331.0,86330.0,0.00039428]
[1764569579273,2.47951751,86331.0,86330.0,0.00039428]
[1764569579484,2.45111851,86331.0,86330.0,0.00039428]
[1764569579681,2.45020651,86331.0,86330.0,0.00039428]
[1764569579885,2.32862851,86331.0,86330.0,0.00039428]
[1764569580164,2.43634351,86331.0,86330.0,0.00039428]
[1764569580316,0.80483382,86331.0,86330.0,0.00039428]
[1764569580487,0.5005966,86331.0,86330.0,0.00039428]
[1764569580688,0.8096576,86331.0,86330.0,0.00039428]
[1764569580942,0.43075361,86331.0,86330.0,0.00039428]
[1764569581156,0.393502,86331.0,86330.0,0.00039428]
[1764569581297,0.393502,86331.0,86330.0,0.03012428]
[1764569581298,0.03197361,86331.0,86330.0,0.03012428]
[1764569581505,0.03197361,86331.0,86330.0,0.07584428]
[1764569581506,0.007,86331.0,86330.0,0.07584428]
[1764569581700,0.007,86331.0,86330.0,0.04984428]
[1764569581899,0.006,86331.0,86330.0,0.00412428]
[1764569582113,0.006,86331.0,86329.0,0.02257]
[1764569582114,0.001,86331.0,86329.0,0.02257]
[1764569582321,0.005,86331.0,86329.0,0.00039443]
[1764569582794,0.01890292,86334.0,86329.0,0.01197802]
[1764569582995,0.01890292,86334.0,86330.0,0.001]
[1764569583207,0.01890292,86334.0,86330.0,0.01158345]
[1764569583495,0.00732,86334.0,86331.0,0.24324736]
[1764569583698,0.23164332,86340.0,86333.0,0.04131305]
[1764569583699,0.02497743,86336.0,86333.0,0.04131305]
[1764569583947,0.01158211,86340.0,86335.0,0.04131278]
[1764569584095,0.01158211,86340.0,86339.0,0.02257]
[1764569584508,0.24322445,86340.0,86339.0,0.02257]
[1764569584873,0.02497743,86341.0,86339.0,0.0523]
[1764569585076,0.03229743,86342.0,86340.0,0.21245784]
[1764569585282,0.03229743,86342.0,86339.0,0.06388225]
[1764569585927,0.03229743,86342.0,86341.0,0.02973]
[1764569586131,0.02497743,86347.0,86344.0,0.00500608]
[1764569586307,0.76391261,86351.0,86345.0,0.26135665]
[1764569586510,0.0365582,86350.0,86346.0,0.01158131]
[1764569586715,0.00732,86351.0,86346.0,0.2432051]
[1764569586916,0.03229743,86351.0,86346.0,0.2432051]
[1764569587119,0.02497743,86351.0,86350.0,0.02973]
[1764569587302,0.51157997,86356.0,86350.0,0.02973]
[1764569587303,0.02497743,86355.0,86351.0,0.24319297]
[1764569587507,0.24318724,86354.0,86351.0,0.02257]
[1764569588019,0.00025494,86358.0,86357.0,0.23159674]
[1764569588224,0.00025494,86358.0,86357.0,0.26132674]
[1764569588433,0.00025494,86358.0,86357.0,0.30704674]
[1764569589241,0.00125494,86358.0,86357.0,0.30744117]
[1764569589440,0.00125494,86358.0,86357.0,0.07584443]
[1764569589662,0.00025494,86358.0,86357.0,0.07584443]
[1764569589843,0.00025494,86358.0,86357.0,0.03012443]
[1764569590267,0.00025494,86358.0,86357.0,0.03112443]
[1764569590656,0.00025494,86358.0,86357.0,0.07684443]
[1764569591084,0.02648634,86358.0,86357.0,0.00139443]
[1764569591288,0.00025494,86358.0,86357.0,0.00139443]
[1764569591611,0.00025494,86358.0,86357.0,0.07545]
[1764569593409,0.00025494,86358.0,86357.0,0.07645]
[1764569598180,0.00025494,86358.0,86357.0,0.07485]
[1764569600248,0.00025494,86358.0,86357.0,0.001]
[1764569600600,0.0078802,86358.0,86357.0,0.001]
[1764569600965,0.0078802,86358.0,86350.0,0.01158077]
[1764569601190,0.01158023,86354.0,86351.0,0.00039507]
[1764569602513,0.07366023,86354.0,86351.0,0.00039507]
[1764569602753,0.26400697,86354.0,86351.0,0.00039507]
[1764569602960,0.01157997,86356.0,86351.0,0.01197571]
[1764569603155,0.24318145,86356.0,86351.0,0.01197571]
[1764569603533,0.24318145,86356.0,86351.0,0.2435866]
[1764569603935,0.01157997,86356.0,86353.0,0.01158037]
[1764569604136,0.23184932,86358.0,86356.0,0.23159917]
[1764569604137,0.00025494,86358.0,86356.0,0.23159917]
[1764569604336,0.00025494,86358.0,86357.0,0.05075]
[1764569604510,0.00025494,86358.0,86357.0,0.11802967]
[1764569606018,0.00025494,86358.0,86357.0,0.07390967]
[1764569606218,0.00025494,86358.0,86357.0,0.02187]
[1764569606489,0.00025494,86358.0,86357.0,0.04984]
[1764569607167,0.00025494,86358.0,86357.0,0.09345]
[1764569607548,0.00025494,86358.0,86357.0,0.11660967]
[1764569608616,0.00025494,86358.0,86357.0,0.02187]
[1764569609402,0.00025494,86358.0,86357.0,0.11660967]
[1764569609826,0.00025494,86358.0,86357.0,0.07299967]
[1764569610188,0.00025494,86358.0,86357.0,0.11660967]
[1764569619763,0.00025494,86358.0,86357.0,0.04984]
[1764569619908,0.00025494,86358.0,86357.0,0.02187]
[1764569620108,0.00025494,86358.0,86351.0,0.00039507]
[1764569620109,0.01157997,86356.0,86351.0,0.00039507]
[1764569620311,0.25938015,86352.0,86351.0,0.00039507]
[1764569620533,0.02777,86352.0,86351.0,0.00039507]
[1764569620733,0.25938015,86352.0,86351.0,0.00039507]
[1764569620944,0.02777,86352.0,86351.0,0.00039507]
[1764569624914,0.07496916,86353.0,86351.0,0.00039507]
[1764569625147,0.00025494,86358.0,86352.0,0.09385]
[1764569625276,0.00732,86355.0,86352.0,0.02227]
[1764569625476,0.0189001,86355.0,86352.0,0.02227]
[1764569625711,0.02777,86353.0,86351.0,0.00039507]
[1764569625916,0.23161015,86352.0,86351.0,0.00039507]
[1764569626115,0.38296077,86352.0,86351.0,0.00039507]
[1764569626660,0.30219015,86352.0,86351.0,0.00039507]
[1764569627055,0.25938015,86352.0,86351.0,0.00039507]
[1764569627234,0.23161015,86352.0,86351.0,0.00039507]
[1764569627399,0.24318501,86354.0,86351.0,0.00039507]
[1764569627598,0.23161015,86352.0,86351.0,0.00039507]
[1764569628055,0.25915015,86352.0,86351.0,0.00039507]
[1764569628543,0.26115015,86352.0,86351.0,0.00039507]
[1764569628738,0.25915015,86352.0,86351.0,0.00039507]
[1764569629479,0.27073146,86352.0,86351.0,0.00039507]
[1764569629838,0.00732,86355.0,86352.0,0.0115805]
[1764569630193,0.25476618,86354.0,86351.0,0.00039507]
[1764569630405,0.01158117,86354.0,86352.0,0.27177015]
[1764569630626,0.01158117,86354.0,86353.0,0.02823]
[1764569630828,0.00025494,86358.0,86357.0,0.23159674]
[1764569631046,0.00025494,86358.0,86357.0,0.28033674]
[1764569631219,0.00025494,86358.0,86357.0,0.32049674]
[1764569631745,0.01889782,86372.0,86367.0,0.01157849]
[1764569631951,0.00732,86372.0,86369.0,0.01157822]
[1764569632295,0.00732,86372.0,86369.0,0.24314066]
[1764569632491,0.00038233,86370.0,86366.0,0.01157863]
[1764569632717,0.00732,86372.0,86368.0,0.01157836]
[1764569632911,0.01132,86372.0,86369.0,0.01157822]
[1764569633113,0.00832,86372.0,86369.0,0.01157822]
[1764569633336,0.01989782,86372.0,86368.0,0.01157836]
[1764569634071,0.01889782,86372.0,86368.0,0.24314368]
[1764569634493,0.01989782,86372.0,86369.0,0.01157822]
[1764569634797,0.02289782,86372.0,86369.0,0.01157822]
[1764569634997,0.00832,86372.0,86370.0,0.23155974]
[1764569635408,0.01032,86372.0,86370.0,0.23155974]
[1764569635630,0.00732,86372.0,86370.0,0.23155974]
[1764569635837,0.01132,86372.0,86371.0,0.06839]
[1764569636043,0.01132,86372.0,86370.0,0.23155974]
[1764569636044,0.01132,86372.0,86370.0,0.23155933]
[1764569636258,0.00732,86372.0,86371.0,0.06839]
[1764569636443,0.03184767,86376.0,86373.0,0.01157769]
[1764569636575,0.03184767,86376.0,86375.0,0.01991]
[1764569636780,0.01157742,86375.0,86370.0,0.24313823]
[1764569636984,0.03184767,86376.0,86373.0,0.01157769]
[1764569637177,0.04342495,86376.0,86373.0,0.01157769]
[1764569638079,0.06841175,86376.0,86373.0,0.01157769]
[1764569638394,0.00050975,86374.0,86373.0,0.01157769]
[1764569638598,0.00050975,86374.0,86369.0,0.01157822]
[1764569638795,0.07341175,86376.0,86373.0,0.01157769]
[1764569639217,0.07241175,86376.0,86373.0,0.01157769]
[1764569639479,0.001,86374.0,86373.0,0.01157769]
[1764569639653,0.005,86374.0,86373.0,0.01157769]
[1764569639869,0.005,86374.0,86373.0,0.24313153]
[1764569640276,0.005,86374.0,86373.0,0.01157769]
[1764569640593,0.005,86374.0,86370.0,0.24313802]
[1764569640738,0.01157769,86373.0,86365.0,0.02051]
[1764569640925,0.01157836,86368.0,86365.0,0.02051]
[1764569641127,0.01157836,86368.0,86364.0,0.01157889]
[1764569641352,0.01157836,86368.0,86364.0,0.24315521]
[1764569641776,0.01157849,86367.0,86363.0,0.01157903]
[1764569641951,0.01157836,86368.0,86364.0,0.01157889]
[1764569642484,0.01357836,86368.0,86364.0,0.01157889]
[1764569642830,0.003,86368.0,86365.0,0.24315405]
[1764569643681,0.003,86368.0,86365.0,0.26366405]
[1764569643868,0.001,86368.0,86365.0,0.26366405]
[1764569644064,0.01457836,86368.0,86360.0,0.01157943]
[1764569644266,0.01157916,86362.0,86357.0,0.2636851]
[1764569644494,0.24316465,86362.0,86357.0,0.2636851]
[1764569644692,0.24316712,86361.0,86357.0,0.02051]
[1764569644903,0.24316712,86361.0,86353.0,0.24318665]
[1764569644904,0.01157956,86359.0,86354.0,0.01158023]
[1764569645060,0.01157956,86359.0,86356.0,0.01157997]
[1764569645267,0.23159105,86360.0,86357.0,0.01157983]
[1764569645459,0.0115793,86361.0,86357.0,0.01157983]
[1764569645721,0.23158194,86363.0,86360.0,0.02823]
[1764569645722,0.01157903,86363.0,86360.0,0.02823]
[1764569645923,0.01157889,86364.0,86362.0,0.02823]
[1764569646634,0.00732,86366.0,86363.0,0.31154968]
[1764569647139,0.00732,86366.0,86365.0,0.02051]
[1764569648162,0.01032,86366.0,86365.0,0.02051]
[1764569648311,0.00832,86366.0,86365.0,0.02051]
[1764569648512,0.00732,86366.0,86365.0,0.02051]
[1764569648719,0.00932,86366.0,86365.0,0.02051]
[1764569648914,0.01032,86366.0,86365.0,0.02051]
[1764569649435,0.01057489,86366.0,86365.0,0.02051]
[1764569649832,0.01057489,86366.0,86365.0,0.0889]
[1764569649833,0.00325489,86366.0,86365.0,0.0889]
[1764569650563,0.00325489,86366.0,86365.0,0.11205752]
[1764569653032,0.00125489,86366.0,86365.0,0.11205752]
[1764569653250,0.00125489,86366.0,86365.0,0.11305752]
[1764569653462,0.00025489,86366.0,86365.0,0.11305752]
[1764569655699,0.00025489,86366.0,86365.0,0.0899]
[1764569658177,0.00025489,86366.0,86365.0,0.11305752]
[1764569659768,0.00025489,86366.0,86365.0,0.0899]
[1764569659769,0.00015489,86366.0,86365.0,0.0899]
[1764569662694,0.00015489,86366.0,86365.0,0.02151]
[1764569662902,0.0499563,86366.0,86365.0,0.02151]
[1764569663075,0.0499563,86366.0,86365.0,0.001]
[1764569663480,0.00015489,86366.0,86365.0,0.001]
[1764569667532,0.00015489,86366.0,86365.0,0.02746]
[1764569667668,0.00015489,86366.0,86365.0,0.09018752]
[1764569668742,0.00015489,86366.0,86365.0,0.06703]
[1764569670154,0.00015489,86366.0,86365.0,0.09018752]
[1764569670555,0.00015489,86366.0,86365.0,0.06703]
[1764569672357,0.00015489,86366.0,86365.0,0.001]
[1764569672548,0.00015489,86366.0,86365.0,0.09477184]
[1764569672744,0.00015489,86366.0,86365.0,0.06703]
[1764569673547,0.00015489,86366.0,86365.0,0.09018752]
[1764569674979,0.00015489,86366.0,86365.0,0.06703]
[1764569677753,0.00015489,86366.0,86365.0,0.19650416]
[1764569679441,0.00015489,86366.0,86365.0,0.10150752]
[1764569682885,0.0002,86390.0,86389.0,0.23151095]
[1764569683090,0.0002,86390.0,86389.0,0.31814095]
[1764569683780,0.00096445,86390.0,86389.0,0.31814095]
[1764569684192,0.00096445,86390.0,86389.0,0.31853602]
[1764569684406,0.00096445,86390.0,86389.0,0.32253602]
[1764569685663,0.00096445,86390.0,86389.0,0.32353602]
[1764569686210,0.00096445,86390.0,86389.0,0.32253602]
[1764569686412,0.00096445,86390.0,86389.0,0.09102507]
[1764569686612,0.00096445,86390.0,86389.0,0.02099507]
[1764569686816,0.00096445,86390.0,86389.0,0.02299507]
[1764569687128,0.00096445,86390.0,86389.0,0.08887507]
[1764569687591,0.00096445,86390.0,86389.0,0.11202616]
[1764569688301,0.00096445,86390.0,86389.0,0.08887507]
[1764569688505,0.00096445,86390.0,86389.0,0.08687507]
[1764569688929,0.00396445,86390.0,86389.0,0.08687507]
[1764569689097,0.00096445,86390.0,86389.0,0.08687507]
[1764569689418,0.00096445,86390.0,86389.0,0.11002616]
[1764569689419,0.00196445,86390.0,86389.0,0.11002616]
[1764569691220,0.00196445,86390.0,86389.0,0.19735521]
[1764569691631,0.00096445,86390.0,86389.0,0.19735521]
[1764569692489,0.00096445,86390.0,86389.0,0.19835521]
[1764569693361,0.00096445,86390.0,86389.0,0.11102616]
[1764569694638,0.03161516,86399.0,86398.0,0.23148683]
[1764569694759,0.03161516,86399.0,86398.0,0.65453989]
[1764569694961,0.0002,86430.0,86424.0,0.23141719]
[1764569695166,0.0002,86430.0,86424.0,0.26954719]
[1764569695365,0.0002,86430.0,86424.0,0.30813719]
[1764569695632,0.0002,86430.0,86424.0,0.01084]
[1764569695779,0.23140886,86428.0,86421.0,0.01157126]
[1764569695979,0.00600051,86425.0,86421.0,0.01157126]
[1764569696233,0.00600051,86425.0,86421.0,0.02069507]
[1764569696442,0.01157085,86424.0,86421.0,0.02069507]
[1764569696870,0.01557123,86425.0,86421.0,0.02069507]
[1764569697045,0.01157085,86424.0,86421.0,0.02069507]
[1764569697536,0.01157085,86424.0,86421.0,0.00039507]
[1764569697537,0.24298819,86424.0,86421.0,0.00039507]
[1764569697906,0.01357123,86425.0,86421.0,0.00039507]
[1764569698252,0.01157085,86424.0,86421.0,0.00039507]
[1764569698810,0.01557085,86424.0,86421.0,0.00039507]
[1764569699612,0.004,86424.0,86421.0,0.01196633]
[1764569699817,0.23141987,86423.0,86422.0,0.01869762]
[1764569700037,0.23141987,86423.0,86421.0,0.00039507]
[1764569700243,0.01557085,86424.0,86421.0,0.00039507]
[1764569701415,0.23141987,86423.0,86421.0,0.00039507]
[1764569701618,0.02596,86422.0,86421.0,0.00039507]
[1764569701838,0.41018,86422.0,86421.0,0.00039507]
[1764569702021,0.0203,86422.0,86421.0,0.00039507]
[1764569702621,0.00200051,86425.0,86421.0,0.00039507]
[1764569702854,0.003,86422.0,86421.0,0.00039507]
[1764569703054,0.0012643,86422.0,86421.0,0.00039507]
[1764569703930,0.24299066,86424.0,86421.0,0.00039507]
[1764569704134,0.23142255,86422.0,86421.0,0.00039507]
[1764569704310,0.23442255,86422.0,86421.0,0.00039507]
[1764569704779,0.003,86422.0,86421.0,0.00039507]
[1764569705585,0.00401875,86422.0,86421.0,0.00039507]
[1764569705961,0.00401875,86422.0,86421.0,0.2318203]
[1764569706184,0.00401875,86422.0,86421.0,0.00039507]
[1764569707028,2.31252545,86422.0,86421.0,0.00039507]
[1764569707229,2.56350934,86422.0,86421.0,0.00039507]
[1764569707436,2.53241495,86422.0,86421.0,0.00039507]
[1764569707804,2.59482717,86422.0,86421.0,0.00039507]
[1764569708004,2.52941495,86422.0,86421.0,0.00039507]
[1764569708447,0.53641495,86422.0,86421.0,0.00039507]
[1764569708647,2.53641495,86422.0,86421.0,0.00039507]
[1764569708890,2.53641495,86422.0,86380.0,0.91054277]
[1764569708891,0.01157675,86380.0,86373.0,0.03187769]
[1764569709063,0.01157675,86380.0,86372.0,0.22271171]
[1764569709064,0.00732,86379.0,86372.0,0.22271171]
[1764569709262,0.00732,86379.0,86373.0,0.01157769]
[1764569709459,0.01157715,86377.0,86373.0,0.01157769]
[1764569709661,0.01157742,86375.0,86370.0,0.0203]
[1764569709842,0.01889796,86379.0,86373.0,0.01157769]
[1764569710045,0.01157715,86377.0,86373.0,0.01157769]
[1764569710247,0.01157715,86377.0,86372.0,0.01157782]
[1764569710486,0.01157715,86377.0,86373.0,0.003]
[1764569710664,0.01157728,86376.0,86372.0,0.01157782]
[1764569711064,0.00732,86375.0,86372.0,0.01157782]
[1764569711376,0.01157702,86378.0,86375.0,0.02729]
[1764569711548,0.00732,86377.0,86375.0,0.02729]
[1764569711755,0.00732,86376.0,86375.0,0.02729]
[1764569712175,0.00732,86376.0,86373.0,0.01157769]
[1764569712420,0.00732,86376.0,86372.0,0.01157782]
[1764569712777,0.00732,86376.0,86372.0,0.24313388]
[1764569712988,0.00732,86376.0,86373.0,0.01157769]
[1764569713206,0.00039429,86380.0,86375.0,0.01157742]
[1764569713405,0.00732,86379.0,86375.0,0.03886742]
[1764569713606,0.01197104,86380.0,86375.0,0.03886742]
[1764569713809,0.00732,86378.0,86375.0,0.01157742]
[1764569714020,0.01889702,86378.0,86373.0,0.01157769]
[1764569714338,0.01157769,86373.0,86363.0,0.23157862]
[1764569714548,0.01157769,86373.0,86358.0,0.03859]
[1764569714549,0.01157836,86368.0,86361.0,0.0203]
[1764569714676,0.01889849,86367.0,86362.0,0.01157916]
[1764569714879,0.01889849,86367.0,86361.0,0.0203]
[1764569714880,0.01157863,86366.0,86361.0,0.0318793]
[1764569715106,0.01889849,86367.0,86362.0,0.01157916]
[1764569715335,0.01157863,86366.0,86362.0,0.01157916]
[1764569715843,0.01889849,86367.0,86364.0,0.01157889]
[1764569715844,0.00732,86367.0,86364.0,0.01157889]
[1764569716053,0.00732,86367.0,86365.0,0.02729]
[1764569716253,0.24313575,86372.0,86365.0,0.02729]
[1764569716254,0.01157742,86375.0,86370.0,0.01157809]
[1764569716578,0.01157769,86373.0,86368.0,0.27043374]
[1764569716898,0.01157782,86372.0,86366.0,0.003]
[1764569717139,0.01721,86369.0,86364.0,0.01157889]
[1764569717342,0.01157782,86372.0,86367.0,0.01157849]
[1764569717541,0.01157782,86372.0,86370.0,0.003]
[1764569717723,0.00732,86374.0,86370.0,0.01157809]
[1764569717904,0.00732,86373.0,86371.0,0.03219796]
[1764569718311,0.01157728,86376.0,86371.0,0.03219796]
[1764569718312,0.01157728,86376.0,86372.0,0.03725782]
[1764569718542,0.01889742,86375.0,86372.0,0.02568]
[1764569718775,0.00732,86375.0,86372.0,0.02568]
[1764569718975,0.00732,86374.0,86373.0,0.01157769]
[1764569719427,0.01157715,86376.0,86373.0,0.03725769]
[1764569719542,0.01157715,86376.0,86374.0,0.23155116]
[1764569719746,0.00732,86375.0,86374.0,0.23155116]
[1764569720141,0.01760429,86380.0,86376.0,0.24312281]
[1764569720344,0.00039429,86380.0,86379.0,0.02568]
[1764569720763,0.00771429,86380.0,86379.0,0.06519]
[1764569721394,0.00039429,86380.0,86379.0,0.06519]
[1764569721967,0.00039429,86380.0,86379.0,0.06919]
[1764569725826,0.00771429,86380.0,86379.0,0.06919]
[1764569730701,0.00039429,86380.0,86379.0,0.06919]
[1764569730944,0.00039429,86380.0,86379.0,0.09234377]
[1764569732769,0.00039429,86380.0,86379.0,0.08834377]
[1764569733215,0.00039429,86380.0,86379.0,0.09334377]
[1764569734826,0.00039429,86380.0,86379.0,0.41634377]
[1764569735022,0.00039429,86380.0,86379.0,0.39319]
[1764569735593,0.00039429,86380.0,86379.0,0.07019]
[1764569736016,0.00039429,86380.0,86379.0,0.005]
[1764569736803,0.00039429,86380.0,86379.0,0.30316775]
[1764569737201,0.00039429,86380.0,86379.0,0.30516775]
[1764569737403,0.00039429,86380.0,86379.0,0.30316775]
[1764569737805,0.00039429,86380.0,86379.0,0.30516775]
[1764569739007,0.00039429,86380.0,86379.0,0.30316775]
[1764569739462,0.00039429,86380.0,86379.0,0.30616775]
[1764569740226,0.00039429,86380.0,86379.0,0.30316775]
[1764569740635,0.00039429,86380.0,86379.0,0.30916775]
[1764569742043,0.0001642,86380.0,86379.0,0.30916775]
[1764569743319,0.0001642,86380.0,86379.0,0.30416775]
[1764569743518,0.0001642,86380.0,86379.0,0.30316775]
[1764569743683,0.0001642,86380.0,86379.0,0.30916775]
[1764569743893,0.0001642,86380.0,86379.0,0.30416775]
[1764569744323,0.0001642,86380.0,86379.0,0.30316775]
[1764569744521,0.0001642,86380.0,86379.0,0.30416775]
[1764569745254,0.0001642,86380.0,86379.0,0.30916775]
[1764569753350,0.00732,86404.0,86400.0,0.23147967]
[1764569753500,0.00732,86404.0,86402.0,0.23147376]
[1764569753939,0.00232,86404.0,86402.0,0.27269376]
[1764569754550,0.00232,86404.0,86403.0,0.02623]
[1764569755046,0.01157246,86412.0,86407.0,0.24303522]
[1764569755249,0.00732,86411.0,86408.0,0.24303133]
[1764569755398,0.00732,86411.0,86408.0,0.011573]
[1764569755816,0.01157219,86414.0,86410.0,0.04594]
[1764569756017,0.5,86417.0,86411.0,0.26925457]
[1764569756236,0.00732,86416.0,86415.0,0.24301275]
[1764569756864,0.00732,86416.0,86415.0,0.24301336]
[1764569757199,0.01157152,86419.0,86416.0,0.01157193]
[1764569757401,0.01157152,86419.0,86416.0,0.04122]
[1764569757605,0.00200051,86425.0,86421.0,0.01157126]
[1764569757805,0.23143862,86416.0,86407.0,0.01157313]
[1764569758124,0.0114,86408.0,86403.0,0.01157367]
[1764569758328,0.0114,86408.0,86405.0,0.0115734]
[1764569758758,0.01872,86408.0,86403.0,0.01157367]
[1764569759251,0.030293,86408.0,86404.0,0.01157353]
[1764569759419,0.01157327,86406.0,86403.0,0.001]
[1764569759566,0.01157327,86406.0,86402.0,0.0115738]
[1764569759768,0.01157327,86406.0,86403.0,0.001]
[1764569759971,0.24303884,86406.0,86403.0,0.001]
[1764569760254,0.25881076,86404.0,86403.0,0.001]
[1764569760405,0.29919076,86404.0,86403.0,0.001]
[1764569761141,0.29919076,86404.0,86400.0,4.133e-05]
[1764569761142,0.2314788,86401.0,86400.0,4.133e-05]
[1764569761301,0.2661388,86401.0,86400.0,4.133e-05]
[1764569761488,0.3065188,86401.0,86400.0,4.133e-05]
[1764569763112,0.3075188,86401.0,86400.0,4.133e-05]
[1764569764109,0.3095188,86401.0,86400.0,4.133e-05]
[1764569765381,0.33451428,86401.0,86400.0,4.133e-05]
[1764569767319,0.32529975,86401.0,86400.0,4.133e-05]
[1764569767482,0.29413428,86401.0,86400.0,4.133e-05]
[1764569767692,0.65751428,86401.0,86400.0,4.133e-05]
[1764569767870,0.68404562,86401.0,86400.0,4.133e-05]
[1764569768074,0.65751428,86401.0,86400.0,4.133e-05]
[1764569768878,0.69918294,86401.0,86400.0,4.133e-05]
[1764569769236,0.65751428,86401.0,86400.0,4.133e-05]
[1764569769425,0.69918294,86401.0,86400.0,4.133e-05]
[1764569769932,2.72003727,86401.0,86400.0,4.133e-05]
[1764569770132,0.83374018,86401.0,86400.0,4.133e-05]
[1764569770399,2.83374018,86401.0,86400.0,4.133e-05]
[1764569770610,0.01157769,86373.0,86368.0,0.01157836]
[1764569770754,0.01157796,86371.0,86368.0,0.00039429]
[1764569771282,0.24313747,86371.0,86368.0,0.00039429]
[1764569771876,0.01157796,86371.0,86368.0,0.00139429]
[1764569772427,0.23156188,86370.0,86368.0,0.00139429]
[1764569773920,0.23156188,86370.0,86368.0,0.00039429]
[1764569774108,0.23156188,86370.0,86368.0,0.00139429]
[1764569775638,0.06772,86369.0,86368.0,0.00139429]
[1764569776246,0.41566348,86369.0,86368.0,0.00139429]
[1764569776806,2.47818647,86369.0,86368.0,0.00139429]
[1764569776947,1.90224347,86369.0,86368.0,0.00139429]